[Event "Titled Tuesday Blitz February 28 Early 2023"]
[White "Schut, Han"]
[Black "Rottenwohrer Suarez, Juan"]
[WhiteFideId "1005561"]
[BlackFideId "32068182"]
[WhiteElo "2024"]
[BlackElo "2174"]
[Result "1-0"]
[Round "06"]
[TimeControl "180+2"]
[Date "2023.02.28"]
[WhiteClock "0:01:45"]
[BlackClock "0:00:31"]

1. e4 {[%clk 0:03:00]}  c5 {[%clk 0:02:59]} 2. Nf3 {[%clk 0:03:00]}  g6 {[%clk 0:03:00]} 3. c4 {[%clk 0:03:00]}  Nc6 {[%clk 0:02:59]} 4. d4 {[%clk 0:03:00]}  cxd4 {[%clk 0:03:00]} 5. Nxd4 {[%clk 0:03:01]}  Nf6 {[%clk 0:03:00]} 6. Nc3 {[%clk 0:03:00]}  d6 {[%clk 0:03:01]} 7. Be2 {[%clk 0:03:00]}  Nxd4 {[%clk 0:03:01]} 8. Qxd4 {[%clk 0:03:00]}  Bg7 {[%clk 0:03:02]} 9. Bg5 {[%clk 0:03:01]}  O-O {[%clk 0:03:02]} 10. Qd2 {[%clk 0:03:01]}  Be6 {[%clk 0:02:51]} 11. Rc1 {[%clk 0:03:00]}  a6 {[%clk 0:02:49]} 12. b3 {[%clk 0:02:59]}  Qa5 {[%clk 0:02:47]} 13. O-O {[%clk 0:02:58]}  Rfc8 {[%clk 0:02:46]} 14. f4 {[%clk 0:02:57]}  b5 {[%clk 0:02:43]} 15. f5 {[%clk 0:02:53]}  Bd7 {[%clk 0:02:34]} 16. fxg6 {[%clk 0:02:48]}  hxg6 {[%clk 0:02:33]} 17. e5 {[%clk 0:02:49]}  Nh7 {[%clk 0:01:41]} 18. Nd5 {[%clk 0:01:55]}  Qxd2 {[%clk 0:01:32]} 19. Bxd2 {[%clk 0:01:56]}  Bxe5 {[%clk 0:00:41]} 20. Nxe7+ {[%clk 0:01:52]}  Kg7 {[%clk 0:00:42]} 21. Nxc8 {[%clk 0:01:50]}  Rxc8 {[%clk 0:00:43]} 22. cxb5 {[%clk 0:01:45]}  Rc2 {[%clk 0:00:31]} 1-0


[Site "https://www.chess.com"]

[Event "Titled Tuesday Blitz February 28 Early 2023"]
[White "Bas Mas, Jose Joaquin"]
[Black "Hertlein, Irena"]
[WhiteFideId "22219064"]
[BlackFideId "21817618"]
[WhiteElo "2233"]
[BlackElo "1776"]
[Result "1-0"]
[Round "06"]
[TimeControl "180+2"]
[Date "2023.02.28"]
[WhiteClock "0:00:36"]
[BlackClock "0:00:48"]

1. e4 {[%clk 0:03:00]}  c5 {[%clk 0:02:59]} 2. Nc3 {[%clk 0:03:00]}  e6 {[%clk 0:02:58]} 3. g3 {[%clk 0:02:58]}  Nc6 {[%clk 0:02:56]} 4. Nf3 {[%clk 0:02:57]}  Nf6 {[%clk 0:02:53]} 5. Bg2 {[%clk 0:02:50]}  Be7 {[%clk 0:02:52]} 6. O-O {[%clk 0:02:49]}  d5 {[%clk 0:02:51]} 7. e5 {[%clk 0:02:34]}  Nd7 {[%clk 0:02:47]} 8. Re1 {[%clk 0:02:34]}  Qc7 {[%clk 0:02:46]} 9. d3 {[%clk 0:02:27]}  Ncxe5 {[%clk 0:02:38]} 10. Nxe5 {[%clk 0:02:15]}  Nxe5 {[%clk 0:02:38]} 11. Bf4 {[%clk 0:02:14]}  f6 {[%clk 0:02:31]} 12. Nb5 {[%clk 0:01:46]}  Qb8 {[%clk 0:02:14]} 13. Bxe5 {[%clk 0:01:35]}  fxe5 {[%clk 0:02:12]} 14. Qh5+ {[%clk 0:01:36]}  g6 {[%clk 0:02:05]} 15. Qxe5 {[%clk 0:01:35]}  Qxe5 {[%clk 0:02:05]} 16. Rxe5 {[%clk 0:01:36]}  Bf6 {[%clk 0:01:46]} 17. Re2 {[%clk 0:01:25]}  Kf7 {[%clk 0:01:24]} 18. Nd6+ {[%clk 0:01:18]}  Ke7 {[%clk 0:01:19]} 19. Nxc8+ {[%clk 0:01:17]}  Raxc8 {[%clk 0:01:20]} 20. Bxd5 {[%clk 0:01:18]}  e5 {[%clk 0:01:09]} 21. Rae1 {[%clk 0:01:00]}  Kd6 {[%clk 0:01:08]} 22. c4 {[%clk 0:00:58]}  b5 {[%clk 0:01:07]} 23. f4 {[%clk 0:00:41]}  Rhe8 {[%clk 0:01:01]} 24. Bf7 {[%clk 0:00:39]}  Re7 {[%clk 0:01:00]} 25. cxb5 {[%clk 0:00:39]}  exf4 {[%clk 0:00:51]} 26. Re6+ {[%clk 0:00:38]}  Rxe6 {[%clk 0:00:48]} 27. Rxe6+ {[%clk 0:00:36]} 1-0


[Site "https://www.chess.com"]

[Event "Titled Tuesday Blitz February 28 Early 2023"]
[White "Rosenberg, Evan S"]
[Black "Ciuffoletti, Paolo"]
[WhiteFideId "2019299"]
[BlackFideId "807630"]
[WhiteElo "2441"]
[BlackElo "2143"]
[Result "1-0"]
[Round "06"]
[TimeControl "180+2"]
[Date "2023.02.28"]
[WhiteClock "0:00:35"]
[BlackClock "0:00:02"]

1. d4 {[%clk 0:03:00]}  d5 {[%clk 0:02:58]} 2. Nf3 {[%clk 0:02:58]}  Nf6 {[%clk 0:02:57]} 3. c3 {[%clk 0:02:58]}  c5 {[%clk 0:02:50]} 4. dxc5 {[%clk 0:02:58]}  e6 {[%clk 0:02:26]} 5. Be3 {[%clk 0:02:58]}  Nbd7 {[%clk 0:02:20]} 6. b4 {[%clk 0:02:50]}  a5 {[%clk 0:01:56]} 7. g3 {[%clk 0:02:41]}  axb4 {[%clk 0:01:47]} 8. cxb4 {[%clk 0:02:41]}  Ne4 {[%clk 0:01:46]} 9. Bg2 {[%clk 0:02:39]}  Qf6 {[%clk 0:01:41]} 10. Bd4 {[%clk 0:02:35]}  e5 {[%clk 0:01:39]} 11. Bb2 {[%clk 0:02:32]}  Qe6 {[%clk 0:00:56]} 12. O-O {[%clk 0:02:27]}  Be7 {[%clk 0:00:56]} 13. Nbd2 {[%clk 0:02:19]}  f5 {[%clk 0:00:51]} 14. Nxe4 {[%clk 0:02:18]}  fxe4 {[%clk 0:00:47]} 15. Nd2 {[%clk 0:02:11]}  O-O {[%clk 0:00:47]} 16. e3 {[%clk 0:02:08]}  Nf6 {[%clk 0:00:36]} 17. Nb3 {[%clk 0:02:03]}  Bd7 {[%clk 0:00:28]} 18. Qd2 {[%clk 0:01:42]}  Bb5 {[%clk 0:00:26]} 19. Rfd1 {[%clk 0:01:38]}  Rad8 {[%clk 0:00:21]} 20. h3 {[%clk 0:01:37]}  Nh5 {[%clk 0:00:17]} 21. Qc3 {[%clk 0:01:16]}  Bf6 {[%clk 0:00:15]} 22. Rd2 {[%clk 0:01:14]}  Bc4 {[%clk 0:00:11]} 23. Rad1 {[%clk 0:01:13]}  Bxb3 {[%clk 0:00:11]} 24. Qxb3 {[%clk 0:01:13]}  Qf5 {[%clk 0:00:06]} 25. g4 {[%clk 0:01:11]}  Qg5 {[%clk 0:00:02]} 26. gxh5 {[%clk 0:01:11]}  Kh8 {[%clk 0:00:01]} 27. Rxd5 {[%clk 0:01:07]}  Rde8 {[%clk 0:00:01]} 28. Qc4 {[%clk 0:00:57]}  Qxh5 {[%clk 0:00:01]} 29. Qxe4 {[%clk 0:00:56]}  Bh4 {[%clk 0:00:02]} 30. Rf1 {[%clk 0:00:38]}  Qe2 {[%clk 0:00:02]} 31. Qxh4 {[%clk 0:00:35]} 1-0


[Site "https://www.chess.com"]

[Event "Titled Tuesday Blitz February 28 Early 2023"]
[White "Buchenau, Frank"]
[Black "Sailer, Mike"]
[WhiteFideId "4604350"]
[BlackFideId "2012901"]
[WhiteElo "2157"]
[BlackElo "2109"]
[Result "0-1"]
[Round "06"]
[TimeControl "180+2"]
[Date "2023.02.28"]
[WhiteClock "0:00:02"]
[BlackClock "0:00:09"]

1. e4 {[%clk 0:03:00]}  d5 {[%clk 0:02:59]} 2. exd5 {[%clk 0:03:00]}  Qxd5 {[%clk 0:03:00]} 3. Nc3 {[%clk 0:03:00]}  Qd6 {[%clk 0:03:01]} 4. d4 {[%clk 0:03:00]}  Nf6 {[%clk 0:03:01]} 5. Nf3 {[%clk 0:03:00]}  c6 {[%clk 0:03:02]} 6. Ne5 {[%clk 0:02:58]}  Nbd7 {[%clk 0:03:02]} 7. Nc4 {[%clk 0:02:57]}  Qc7 {[%clk 0:03:02]} 8. Qf3 {[%clk 0:02:53]}  Nb6 {[%clk 0:03:02]} 9. Bf4 {[%clk 0:02:47]}  Qd8 {[%clk 0:03:02]} 10. Be5 {[%clk 0:02:09]}  Bg4 {[%clk 0:02:42]} 11. Qg3 {[%clk 0:02:06]}  h5 {[%clk 0:02:41]} 12. h3 {[%clk 0:01:54]}  Be6 {[%clk 0:02:38]} 13. Nxb6 {[%clk 0:01:45]}  axb6 {[%clk 0:02:36]} 14. Bd3 {[%clk 0:01:27]}  Nd5 {[%clk 0:02:25]} 15. Nxd5 {[%clk 0:01:17]}  Bxd5 {[%clk 0:02:24]} 16. c4 {[%clk 0:01:13]}  Be6 {[%clk 0:02:16]} 17. O-O {[%clk 0:01:13]}  f6 {[%clk 0:02:03]} 18. Bg6+ {[%clk 0:00:54]}  Bf7 {[%clk 0:02:03]} 19. Bc7 {[%clk 0:00:48]}  Qxd4 {[%clk 0:01:55]} 20. Rad1 {[%clk 0:00:46]}  Qxc4 {[%clk 0:01:48]} 21. b3 {[%clk 0:00:40]}  h4 {[%clk 0:01:32]} 22. Qe3 {[%clk 0:00:34]}  Qc5 {[%clk 0:01:21]} 23. Qd3 {[%clk 0:00:31]}  Qd5 {[%clk 0:01:07]} 24. Qe2 {[%clk 0:00:28]}  Qg5 {[%clk 0:00:49]} 25. Bxf7+ {[%clk 0:00:20]}  Kxf7 {[%clk 0:00:49]} 26. Rd7 {[%clk 0:00:19]}  Qb5 {[%clk 0:00:36]} 27. Qe3 {[%clk 0:00:14]}  Rh5 {[%clk 0:00:28]} 28. Qf3 {[%clk 0:00:10]}  Qf5 {[%clk 0:00:23]} 29. Qe2 {[%clk 0:00:08]}  Qxd7 {[%clk 0:00:20]} 30. Qxh5+ {[%clk 0:00:08]}  Kg8 {[%clk 0:00:21]} 31. Bxb6 {[%clk 0:00:07]}  e6 {[%clk 0:00:17]} 32. Qxh4 {[%clk 0:00:07]}  Bd6 {[%clk 0:00:09]} 33. Be3 {[%clk 0:00:04]}  Be5 {[%clk 0:00:09]} 34. a4 {[%clk 0:00:04]}  Rd8 {[%clk 0:00:09]} 35. Qg4 {[%clk 0:00:04]}  Qf7 {[%clk 0:00:09]} 36. h4 {[%clk 0:00:03]}  Bc7 {[%clk 0:00:09]} 37. b4 {[%clk 0:00:02]}  Bb8 {[%clk 0:00:09]} 38. h5 {[%clk 0:00:02]}  Qc7 {[%clk 0:00:09]} 0-1


[Site "https://www.chess.com"]

[Event "Titled Tuesday Blitz February 28 Early 2023"]
[White "Winkels, Marcel"]
[Black "Sreyas Payyappat"]
[WhiteFideId "1003887"]
[BlackFideId "46674969"]
[WhiteElo "1900"]
[BlackElo "2083"]
[Result "0-1"]
[Round "06"]
[TimeControl "180+2"]
[Date "2023.02.28"]
[WhiteClock "0:00:28"]
[BlackClock "0:00:08"]

1. e4 {[%clk 0:03:00]}  c6 {[%clk 0:02:58]} 2. d4 {[%clk 0:02:59]}  d5 {[%clk 0:02:58]} 3. exd5 {[%clk 0:02:57]}  cxd5 {[%clk 0:02:59]} 4. c4 {[%clk 0:02:57]}  Nf6 {[%clk 0:02:59]} 5. Nc3 {[%clk 0:02:58]}  Nc6 {[%clk 0:02:58]} 6. Bg5 {[%clk 0:02:56]}  Be6 {[%clk 0:02:57]} 7. c5 {[%clk 0:02:56]}  g6 {[%clk 0:02:56]} 8. Nf3 {[%clk 0:02:54]}  Bg7 {[%clk 0:02:56]} 9. Bb5 {[%clk 0:02:54]}  O-O {[%clk 0:02:57]} 10. Bxc6 {[%clk 0:02:53]}  bxc6 {[%clk 0:02:58]} 11. Ne5 {[%clk 0:02:53]}  Qc7 {[%clk 0:02:58]} 12. O-O {[%clk 0:02:51]}  Ne4 {[%clk 0:02:51]} 13. Bf4 {[%clk 0:02:45]}  g5 {[%clk 0:02:35]} 14. Nxe4 {[%clk 0:02:27]}  gxf4 {[%clk 0:02:33]} 15. Ng5 {[%clk 0:02:25]}  Bxe5 {[%clk 0:02:22]} 16. Qh5 {[%clk 0:02:11]}  Bf5 {[%clk 0:02:11]} 17. dxe5 {[%clk 0:02:09]}  Qxe5 {[%clk 0:02:12]} 18. Rfe1 {[%clk 0:02:09]}  Qf6 {[%clk 0:02:10]} 19. Rac1 {[%clk 0:01:58]}  e5 {[%clk 0:01:59]} 20. Nf3 {[%clk 0:01:56]}  e4 {[%clk 0:01:40]} 21. Ng5 {[%clk 0:01:45]}  Qg6 {[%clk 0:00:59]} 22. Qxg6+ {[%clk 0:01:41]}  fxg6 {[%clk 0:00:57]} 23. b4 {[%clk 0:01:36]}  Rab8 {[%clk 0:00:56]} 24. a3 {[%clk 0:01:36]}  h5 {[%clk 0:00:53]} 25. h4 {[%clk 0:01:34]}  Kg7 {[%clk 0:00:52]} 26. Rb1 {[%clk 0:01:26]}  Rfe8 {[%clk 0:00:50]} 27. Rb3 {[%clk 0:01:25]}  Kf6 {[%clk 0:00:47]} 28. Rc1 {[%clk 0:01:19]}  a6 {[%clk 0:00:37]} 29. a4 {[%clk 0:01:18]}  Rb7 {[%clk 0:00:35]} 30. Kf1 {[%clk 0:01:12]}  Reb8 {[%clk 0:00:29]} 31. Rcb1 {[%clk 0:01:11]}  Ke5 {[%clk 0:00:28]} 32. R1b2 {[%clk 0:01:09]}  d4 {[%clk 0:00:26]} 33. Ke2 {[%clk 0:01:07]}  d3+ {[%clk 0:00:17]} 34. Kd2 {[%clk 0:01:06]}  Kd4 {[%clk 0:00:17]} 35. b5 {[%clk 0:00:43]}  axb5 {[%clk 0:00:17]} 36. axb5 {[%clk 0:00:43]}  e3+ {[%clk 0:00:17]} 37. fxe3+ {[%clk 0:00:42]}  fxe3+ {[%clk 0:00:18]} 38. Kd1 {[%clk 0:00:42]}  Rxb5 {[%clk 0:00:15]} 39. Rxb5 {[%clk 0:00:40]}  Rxb5 {[%clk 0:00:16]} 40. Rxb5 {[%clk 0:00:39]}  cxb5 {[%clk 0:00:17]} 41. c6 {[%clk 0:00:38]}  Bg4+ {[%clk 0:00:15]} 42. Nf3+ {[%clk 0:00:35]}  Kd5 {[%clk 0:00:08]} 43. Ke1 {[%clk 0:00:31]}  Bxf3 {[%clk 0:00:07]} 44. gxf3 {[%clk 0:00:30]}  Kxc6 {[%clk 0:00:07]} 45. f4 {[%clk 0:00:30]}  b4 {[%clk 0:00:07]} 46. Kd1 {[%clk 0:00:29]}  b3 {[%clk 0:00:07]} 47. Kc1 {[%clk 0:00:29]}  d2+ {[%clk 0:00:07]} 48. Kd1 {[%clk 0:00:28]}  b2 {[%clk 0:00:08]} 0-1


[Site "https://www.chess.com"]

[Event "Titled Tuesday Blitz February 28 Early 2023"]
[White "Sanchez, Robert"]
[Black "Fabris, Alberto"]
[WhiteFideId "2034360"]
[BlackFideId "801348"]
[WhiteElo "2436"]
[BlackElo "2137"]
[Result "1-0"]
[Round "06"]
[TimeControl "180+2"]
[Date "2023.02.28"]
[WhiteClock "0:00:57"]
[BlackClock "0:01:00"]

1. e4 {[%clk 0:02:41]}  c5 {[%clk 0:02:59]} 2. Nf3 {[%clk 0:02:38]}  d6 {[%clk 0:03:00]} 3. d4 {[%clk 0:02:19]}  cxd4 {[%clk 0:03:01]} 4. Nxd4 {[%clk 0:02:20]}  Nf6 {[%clk 0:03:00]} 5. Nc3 {[%clk 0:02:20]}  a6 {[%clk 0:03:01]} 6. Be3 {[%clk 0:02:20]}  e5 {[%clk 0:03:01]} 7. Nb3 {[%clk 0:02:20]}  Be7 {[%clk 0:03:01]} 8. f3 {[%clk 0:02:20]}  Qc7 {[%clk 0:02:57]} 9. Qd2 {[%clk 0:02:21]}  h5 {[%clk 0:02:57]} 10. O-O-O {[%clk 0:02:20]}  O-O {[%clk 0:02:55]} 11. h3 {[%clk 0:02:18]}  Be6 {[%clk 0:02:35]} 12. g4 {[%clk 0:02:15]}  Nbd7 {[%clk 0:02:30]} 13. Nd5 {[%clk 0:02:16]}  Bxd5 {[%clk 0:02:29]} 14. exd5 {[%clk 0:02:16]}  a5 {[%clk 0:02:21]} 15. g5 {[%clk 0:02:09]}  Ne8 {[%clk 0:02:20]} 16. Kb1 {[%clk 0:02:08]}  a4 {[%clk 0:02:17]} 17. Nc1 {[%clk 0:02:08]}  Nc5 {[%clk 0:02:12]} 18. Nd3 {[%clk 0:02:06]}  Nxd3 {[%clk 0:02:11]} 19. Bxd3 {[%clk 0:02:06]}  g6 {[%clk 0:02:11]} 20. c4 {[%clk 0:02:01]}  Qd7 {[%clk 0:02:06]} 21. h4 {[%clk 0:01:43]}  Ng7 {[%clk 0:02:06]} 22. f4 {[%clk 0:01:40]}  Nf5 {[%clk 0:02:00]} 23. fxe5 {[%clk 0:01:35]}  dxe5 {[%clk 0:01:55]} 24. Bf2 {[%clk 0:01:28]}  Rfc8 {[%clk 0:01:42]} 25. Rhf1 {[%clk 0:01:26]}  Nd4 {[%clk 0:01:34]} 26. Bxd4 {[%clk 0:01:24]}  exd4 {[%clk 0:01:34]} 27. Qf4 {[%clk 0:01:15]}  Bf8 {[%clk 0:01:28]} 28. Rde1 {[%clk 0:01:10]}  Bg7 {[%clk 0:01:25]} 29. d6 {[%clk 0:01:06]}  Re8 {[%clk 0:01:23]} 30. c5 {[%clk 0:01:03]}  Re6 {[%clk 0:01:13]} 31. Bc4 {[%clk 0:01:00]}  Rxe1+ {[%clk 0:01:11]} 32. Rxe1 {[%clk 0:01:00]}  Re8 {[%clk 0:01:04]} 33. Qxf7+ {[%clk 0:00:57]}  Qxf7 {[%clk 0:01:00]} 34. Rxe8+ {[%clk 0:00:57]} 1-0


[Site "https://www.chess.com"]

[Event "Titled Tuesday Blitz February 28 Early 2023"]
[White "Seletsky, Grigory"]
[Black "Flis, Pawel"]
[WhiteFideId "14112191"]
[BlackFideId "1112864"]
[WhiteElo "2490"]
[BlackElo "1822"]
[Result "1-0"]
[Round "06"]
[TimeControl "180+2"]
[Date "2023.02.28"]
[WhiteClock "0:01:44"]
[BlackClock "0:00:19"]

1. e4 {[%clk 0:02:59]}  c5 {[%clk 0:03:00]} 2. Nf3 {[%clk 0:02:59]}  d6 {[%clk 0:03:00]} 3. c3 {[%clk 0:02:56]}  Nf6 {[%clk 0:03:00]} 4. Bd3 {[%clk 0:02:57]}  Nc6 {[%clk 0:02:58]} 5. Bc2 {[%clk 0:02:57]}  g6 {[%clk 0:02:58]} 6. h3 {[%clk 0:02:56]}  Bg7 {[%clk 0:02:58]} 7. O-O {[%clk 0:02:56]}  O-O {[%clk 0:02:58]} 8. Re1 {[%clk 0:02:57]}  a6 {[%clk 0:02:55]} 9. d4 {[%clk 0:02:57]}  cxd4 {[%clk 0:02:55]} 10. cxd4 {[%clk 0:02:58]}  Bd7 {[%clk 0:02:50]} 11. Nc3 {[%clk 0:02:58]}  Rc8 {[%clk 0:02:48]} 12. Be3 {[%clk 0:02:55]}  b5 {[%clk 0:02:47]} 13. a3 {[%clk 0:02:53]}  Na5 {[%clk 0:02:46]} 14. Nd2 {[%clk 0:02:53]}  Qb6 {[%clk 0:02:38]} 15. Bd3 {[%clk 0:02:44]}  Nc4 {[%clk 0:02:30]} 16. Bxc4 {[%clk 0:02:40]}  bxc4 {[%clk 0:02:31]} 17. Qc2 {[%clk 0:02:39]}  Rfd8 {[%clk 0:02:00]} 18. d5 {[%clk 0:02:36]}  Qb7 {[%clk 0:01:56]} 19. Bd4 {[%clk 0:02:36]}  Ne8 {[%clk 0:01:53]} 20. Bxg7 {[%clk 0:02:31]}  Kxg7 {[%clk 0:01:54]} 21. Nf3 {[%clk 0:02:28]}  f6 {[%clk 0:01:51]} 22. Nd4 {[%clk 0:02:27]}  Nc7 {[%clk 0:01:49]} 23. Rad1 {[%clk 0:02:23]}  Nb5 {[%clk 0:01:48]} 24. f4 {[%clk 0:02:11]}  Nxd4 {[%clk 0:01:40]} 25. Rxd4 {[%clk 0:02:10]}  Qb3 {[%clk 0:01:35]} 26. Qf2 {[%clk 0:02:08]}  Rb8 {[%clk 0:01:32]} 27. Rd2 {[%clk 0:02:08]}  Qb6 {[%clk 0:01:24]} 28. e5 {[%clk 0:02:05]}  Qxf2+ {[%clk 0:01:23]} 29. Kxf2 {[%clk 0:02:05]}  fxe5 {[%clk 0:01:23]} 30. fxe5 {[%clk 0:02:06]}  Rf8+ {[%clk 0:01:21]} 31. Kg3 {[%clk 0:02:04]}  Rbe8 {[%clk 0:01:19]} 32. Rd4 {[%clk 0:01:56]}  dxe5 {[%clk 0:01:00]} 33. Rxe5 {[%clk 0:01:55]}  Rf1 {[%clk 0:00:53]} 34. Rxc4 {[%clk 0:01:53]}  Rc1 {[%clk 0:00:49]} 35. Rc7 {[%clk 0:01:52]}  Kf6 {[%clk 0:00:38]} 36. Re2 {[%clk 0:01:51]}  Bb5 {[%clk 0:00:35]} 37. Ne4+ {[%clk 0:01:50]}  Kf7 {[%clk 0:00:28]} 38. Rf2+ {[%clk 0:01:49]}  Kg7 {[%clk 0:00:25]} 39. Rxc1 {[%clk 0:01:49]}  Bd3 {[%clk 0:00:19]} 40. Nc3 {[%clk 0:01:44]} 1-0


[Site "https://www.chess.com"]

[Event "Titled Tuesday Blitz February 28 Early 2023"]
[White "Filgueira, Hernan"]
[Black "Levine, David"]
[WhiteFideId "101770"]
[BlackFideId "2011611"]
[WhiteElo "2363"]
[BlackElo "2128"]
[Result "1-0"]
[Round "06"]
[TimeControl "180+2"]
[Date "2023.02.28"]
[WhiteClock "0:02:32"]
[BlackClock "0:00:24"]

1. c4 {[%clk 0:02:58]}  Nf6 {[%clk 0:02:58]} 2. Nc3 {[%clk 0:02:58]}  e6 {[%clk 0:02:56]} 3. e4 {[%clk 0:02:58]}  c5 {[%clk 0:02:55]} 4. Nf3 {[%clk 0:02:56]}  Nc6 {[%clk 0:02:55]} 5. Be2 {[%clk 0:02:56]}  d6 {[%clk 0:02:48]} 6. O-O {[%clk 0:02:54]}  Be7 {[%clk 0:02:48]} 7. d4 {[%clk 0:02:54]}  cxd4 {[%clk 0:02:44]} 8. Nxd4 {[%clk 0:02:54]}  O-O {[%clk 0:02:37]} 9. f4 {[%clk 0:02:48]}  Qc7 {[%clk 0:02:35]} 10. Kh1 {[%clk 0:02:47]}  a6 {[%clk 0:02:28]} 11. Be3 {[%clk 0:02:44]}  b6 {[%clk 0:02:19]} 12. Nxc6 {[%clk 0:02:42]}  Qxc6 {[%clk 0:02:19]} 13. e5 {[%clk 0:02:42]}  Nd7 {[%clk 0:02:13]} 14. Bf3 {[%clk 0:02:42]}  d5 {[%clk 0:01:57]} 15. cxd5 {[%clk 0:02:39]}  exd5 {[%clk 0:01:14]} 16. Bxd5 {[%clk 0:02:37]}  Qc7 {[%clk 0:01:07]} 17. Bxa8 {[%clk 0:02:36]}  Bb7 {[%clk 0:01:06]} 18. Bxb7 {[%clk 0:02:36]}  Qxb7 {[%clk 0:01:06]} 19. Qd5 {[%clk 0:02:35]}  Qxd5 {[%clk 0:01:03]} 20. Nxd5 {[%clk 0:02:34]}  Nc5 {[%clk 0:01:02]} 21. Nxe7+ {[%clk 0:02:34]}  Kh8 {[%clk 0:00:35]} 22. Bxc5 {[%clk 0:02:33]}  bxc5 {[%clk 0:00:27]} 23. Rad1 {[%clk 0:02:33]}  Rd8 {[%clk 0:00:24]} 24. Rxd8# {[%clk 0:02:32]} 1-0


[Site "https://www.chess.com"]

[Event "Titled Tuesday Blitz February 28 Early 2023"]
[White "Castellanos Villela, Alejandro"]
[Black "Piriflillo"]
[WhiteFideId "3446379"]
[WhiteElo "2102"]
[BlackElo "2332"]
[Result "1-0"]
[Round "06"]
[TimeControl "180+2"]
[Date "2023.02.28"]
[WhiteClock "0:00:15"]
[BlackClock "0:00:05"]

1. e4 {[%clk 0:03:00]}  e5 {[%clk 0:03:00]} 2. Nf3 {[%clk 0:02:54]}  Nc6 {[%clk 0:03:00]} 3. Bc4 {[%clk 0:02:54]}  Bc5 {[%clk 0:02:59]} 4. O-O {[%clk 0:02:51]}  Nf6 {[%clk 0:02:59]} 5. d3 {[%clk 0:02:51]}  d6 {[%clk 0:02:59]} 6. Re1 {[%clk 0:02:50]}  h6 {[%clk 0:02:58]} 7. a4 {[%clk 0:02:49]}  a5 {[%clk 0:02:57]} 8. c3 {[%clk 0:02:48]}  O-O {[%clk 0:02:56]} 9. h3 {[%clk 0:02:47]}  Ba7 {[%clk 0:02:56]} 10. Be3 {[%clk 0:02:46]}  Ne7 {[%clk 0:02:56]} 11. Bxa7 {[%clk 0:02:45]}  Rxa7 {[%clk 0:02:56]} 12. d4 {[%clk 0:02:46]}  Ng6 {[%clk 0:02:55]} 13. Nbd2 {[%clk 0:02:45]}  Ra8 {[%clk 0:02:55]} 14. Bb3 {[%clk 0:02:43]}  c6 {[%clk 0:02:55]} 15. Nf1 {[%clk 0:02:40]}  Nf4 {[%clk 0:02:55]} 16. Ng3 {[%clk 0:02:38]}  Qc7 {[%clk 0:02:48]} 17. Qd2 {[%clk 0:02:36]}  b6 {[%clk 0:02:33]} 18. Rad1 {[%clk 0:02:35]}  Ng6 {[%clk 0:02:25]} 19. Nf5 {[%clk 0:02:27]}  Kh7 {[%clk 0:02:18]} 20. g4 {[%clk 0:02:22]}  d5 {[%clk 0:02:02]} 21. exd5 {[%clk 0:02:17]}  e4 {[%clk 0:02:02]} 22. d6 {[%clk 0:01:55]}  Qb8 {[%clk 0:02:02]} 23. Ne5 {[%clk 0:01:52]}  Bxf5 {[%clk 0:01:56]} 24. gxf5 {[%clk 0:01:52]}  Nh4 {[%clk 0:01:57]} 25. Qf4 {[%clk 0:01:44]}  Nf3+ {[%clk 0:01:56]} 26. Nxf3 {[%clk 0:01:43]}  exf3 {[%clk 0:01:56]} 27. Re7 {[%clk 0:01:41]}  Rd8 {[%clk 0:01:53]} 28. Bxf7 {[%clk 0:01:38]}  Qxd6 {[%clk 0:01:49]} 29. Bg6+ {[%clk 0:01:37]}  Kg8 {[%clk 0:01:46]} 30. Qxd6 {[%clk 0:01:37]}  Rxd6 {[%clk 0:01:47]} 31. Rd3 {[%clk 0:01:30]}  Nd5 {[%clk 0:01:44]} 32. Rb7 {[%clk 0:01:29]}  Nf4 {[%clk 0:01:41]} 33. Rxf3 {[%clk 0:01:27]}  Nxg6 {[%clk 0:01:40]} 34. fxg6 {[%clk 0:01:28]}  Rxg6+ {[%clk 0:01:40]} 35. Kf1 {[%clk 0:01:29]}  c5 {[%clk 0:01:38]} 36. dxc5 {[%clk 0:01:20]}  bxc5 {[%clk 0:01:38]} 37. Rg3 {[%clk 0:01:19]}  Rxg3 {[%clk 0:01:35]} 38. fxg3 {[%clk 0:01:20]}  Rf8+ {[%clk 0:01:32]} 39. Ke2 {[%clk 0:01:19]}  Re8+ {[%clk 0:01:32]} 40. Kf3 {[%clk 0:01:18]}  Rd8 {[%clk 0:01:30]} 41. Ke3 {[%clk 0:01:18]}  Rd1 {[%clk 0:01:29]} 42. Rb5 {[%clk 0:01:16]}  Re1+ {[%clk 0:01:26]} 43. Kf2 {[%clk 0:01:14]}  Rb1 {[%clk 0:01:26]} 44. Kf3 {[%clk 0:01:13]}  c4 {[%clk 0:01:25]} 45. Rxa5 {[%clk 0:01:10]}  Rxb2 {[%clk 0:01:26]} 46. Rc5 {[%clk 0:01:11]}  Ra2 {[%clk 0:01:21]} 47. Rxc4 {[%clk 0:01:11]}  Ra3 {[%clk 0:01:21]} 48. h4 {[%clk 0:01:11]}  Kf7 {[%clk 0:01:22]} 49. Ke4 {[%clk 0:01:09]}  Ke6 {[%clk 0:01:22]} 50. g4 {[%clk 0:01:08]}  Kd6 {[%clk 0:01:18]} 51. h5 {[%clk 0:01:04]}  Ra1 {[%clk 0:01:13]} 52. Kd3 {[%clk 0:01:03]}  Kd5 {[%clk 0:01:08]} 53. Rc7 {[%clk 0:01:01]}  Rxa4 {[%clk 0:01:06]} 54. Rxg7 {[%clk 0:01:01]}  Rf4 {[%clk 0:01:06]} 55. Rg6 {[%clk 0:01:01]}  Rf3+ {[%clk 0:01:03]} 56. Ke2 {[%clk 0:00:56]}  Rg3 {[%clk 0:00:28]} 57. Kf2 {[%clk 0:00:55]}  Rxc3 {[%clk 0:00:25]} 58. Rxh6 {[%clk 0:00:55]}  Ke5 {[%clk 0:00:24]} 59. Rg6 {[%clk 0:00:49]}  Kf4 {[%clk 0:00:23]} 60. Ke2 {[%clk 0:00:43]}  Rh3 {[%clk 0:00:20]} 61. Kd2 {[%clk 0:00:41]}  Ke4 {[%clk 0:00:20]} 62. Kc2 {[%clk 0:00:40]}  Rh2+ {[%clk 0:00:19]} 63. Kc3 {[%clk 0:00:39]}  Rh3+ {[%clk 0:00:19]} 64. Kc4 {[%clk 0:00:40]}  Kf4 {[%clk 0:00:20]} 65. Kd5 {[%clk 0:00:39]}  Re3 {[%clk 0:00:17]} 66. Kd6 {[%clk 0:00:37]}  Ra3 {[%clk 0:00:16]} 67. Ke7 {[%clk 0:00:36]}  Ra7+ {[%clk 0:00:16]} 68. Kf8 {[%clk 0:00:36]}  Ra8+ {[%clk 0:00:16]} 69. Kg7 {[%clk 0:00:37]}  Ra7+ {[%clk 0:00:16]} 70. Kh8 {[%clk 0:00:37]}  Ra8+ {[%clk 0:00:16]} 71. Kh7 {[%clk 0:00:37]}  Ra7+ {[%clk 0:00:16]} 72. Rg7 {[%clk 0:00:38]}  Ra6 {[%clk 0:00:14]} 73. h6 {[%clk 0:00:36]}  Ke5 {[%clk 0:00:15]} 74. g5 {[%clk 0:00:36]}  Kf5 {[%clk 0:00:13]} 75. Kh8 {[%clk 0:00:35]}  Ra8+ {[%clk 0:00:12]} 76. Rg8 {[%clk 0:00:35]}  Ra7 {[%clk 0:00:12]} 77. h7 {[%clk 0:00:35]}  Ke6 {[%clk 0:00:10]} 78. g6 {[%clk 0:00:34]}  Kf6 {[%clk 0:00:09]} 79. g7 {[%clk 0:00:13]}  Kg6 {[%clk 0:00:09]} 80. Rf8 {[%clk 0:00:13]}  Rxg7 {[%clk 0:00:08]} 81. Rg8 {[%clk 0:00:13]}  Kf7 {[%clk 0:00:04]} 82. Rxg7+ {[%clk 0:00:13]}  Kf8 {[%clk 0:00:05]} 83. Rg2 {[%clk 0:00:13]}  Kf7 {[%clk 0:00:05]} 84. Rf2+ {[%clk 0:00:14]}  Kg6 {[%clk 0:00:05]} 85. Kg8 {[%clk 0:00:15]}  Kg5 {[%clk 0:00:05]} 86. h8=Q {[%clk 0:00:15]}  Kg6 {[%clk 0:00:05]} 87. Qh1 {[%clk 0:00:15]} 1-0


[Site "https://www.chess.com"]